Cogmind - Beta 10 @@@ ROGUE MODE // 2020.09.18 @ 01:57:35 Player: Finestep Result: Destroyed by DAS Turret with DAS Cannon Performance ------------- Evolutions (1) 500 Regions Visited (5) 1000 Robots Destroyed (86) 430 Value Destroyed (1658) 1658 Prototype IDs (28) 560 Alien Tech Used (0) 0 Bonus (9) 9 TOTAL SCORE: 4157 Bonus ------- High Alert Combat Kills 34 Aligned with FarCom 300 Friendly Fire -325 Cogmind --------- Core Integrity 0/400 Matter 239/300 Energy 100/100 System Corruption 0% Temperature Cool (0) Movement Core (1900) Ox37 Location -9/Exiles Parts ------- > --- POWER (1) -------- (None) > --- PROPULSION (3) --- (None) > --- UTILITY (3) ------ High-capacity Storage Unit Humpback > --- WEAPON (2) ------- (None) > --- INVENTORY (32) --- Reinforced Ion Engine Reinforced Fission Core Experimental Heat Sink High-capacity Matter Pod (90) AS-neutralizer No. 17b Improved Assault Rifle Improved Assault Rifle Mini Grenade Launcher Peak State ------------ > --- POWER ------------ Reinforced Ion Engine > --- PROPULSION ------- Light Treads Armored Huge Wheel > --- UTILITY ---------- High-capacity Storage Unit Armor Integrity Analyzer Light Armor Plating > --- WEAPON ----------- Improved Assault Rifle Improved Assault Rifle > --- INVENTORY -------- Reinforced Ion Engine Reinforced Fission Core Light Treads Experimental Heat Sink AS-neutralizer No. 17b Improved Assault Rifle Improved Assault Rifle Improved Assault Rifle Mini Grenade Launcher [Rating: 24] Favorites ----------- Power Reinforced Ion Engine Engine Reinforced Ion Engine Propulsion Light Treads Treads Light Treads Wheel Armored Huge Wheel Utility Large Storage Unit Storage Large Storage Unit Processor Armor Integrity Analyzer Protection Light Armor Plating Weapon Improved Assault Rifle Energy Gun Medium Laser Ballistic Gun Improved Assault Rifle Launcher Mini Grenade Launcher Special Weapon Mining Laser Slashing Weapon Mining Claw Build | -11 -10 -10 -9 -9 -9 ------- Run | Scr Mat Min Mat Min Exi Slots Evolved 2 | . . . 2 . . Power . | . . . . . . Propulsion 1 | . . . 1 . . Utility 1 | . . . 1 . . Weapon . | . . . . . . Parts Attached 65 | 7 13 5 19 5 16 Power 5 | 1 2 . 1 1 . Engine 5 | 1 2 . 1 1 . Core . | . . . . . . Reactor . | . . . . . . Propulsion 16 | 2 3 1 5 2 3 Treads 15 | 2 3 1 5 2 2 Leg . | . . . . . . Wheel 1 | . . . . . 1 Hover . | . . . . . . Flight . | . . . . . . Utility 15 | 2 3 . 1 . 9 Device . | . . . . . . Storage 11 | 2 3 . 1 . 5 Processor 1 | . . . . . 1 Hackware . | . . . . . . Protection 3 | . . . . . 3 Artifact . | . . . . . . Weapon 29 | 2 5 4 12 2 4 Energy Gun 2 | 1 1 . . . . Energy Cannon . | . . . . . . Ballistic Gun 21 | 1 3 3 9 2 3 Ballistic Cannon . | . . . . . . Launcher 4 | . . 1 2 . 1 Special Weapon 1 | . . . 1 . . Impact Weapon . | . . . . . . Slashing Weapon 1 | . 1 . . . . Piercing Weapon . | . . . . . . Special Melee Weapon . | . . . . . . Unidentified Prototypes 1 | . . . 1 . . Parts Lost 16 | . 2 . 2 . 12 Power 2 | . . . 1 . 1 Propulsion 6 | . . . 1 . 5 Utility 2 | . . . . . 2 Weapon 6 | . 2 . . . 4 Highest Loss Streak 7 | . 1 . 1 . 7 Average Slot Usage (%) 99 | . 99 100 99 99 97 Engine 12 | . 14 14 10 10 11 Treads 30 | . 27 28 32 32 29 Storage 29 | . 28 28 33 33 26 Energy Gun 2 | . 11 . . . . Ballistic Gun 21 | . 16 27 21 22 21 Naked Turns . | . . . . . . Heaviest Build 128 | 16 41 39 64 64 128 Greatest Support 60 | 40 40 40 60 60 60 Greatest Overweight (x) 38 | 2 1 . 1 1 38 Average Overweight (x) . | . . . . 1 1 Largest Inventory Capacity 32 | 8 16 16 22 22 32 Average Capacity 19 | 6 14 16 21 22 21 Most Carried 26 | 5 16 16 22 22 26 Average Carried 17 | 3 11 15 21 21 20 Final Capacity 32 | 8 16 16 22 22 32 Final Carried 22 | 5 16 16 22 22 8 Class Distribution -------------------- 53% | Hauler-Mutant 46% | Mutant Dominant Class ---------------- Mutant | -10/Materials Mutant | -10/Mines Hauler-Mutant | -9/Materials Hauler-Mutant | -9/Mines Hauler-Mutant | -9/Exiles Resources | -11 -10 -10 -9 -9 -9 ----------- Run | Scr Mat Min Mat Min Exi Matter Collected 2225 | 274 478 126 694 92 561 Remotely . | . . . . . . Salvage Created 2689 | 103 821 153 1362 124 126 Parts 180 | 7 47 11 99 13 3 Haulers Intercepted 6 | . 2 . 4 . . Recyclers Shooed 4 | 1 1 1 1 . . Parts Field Recycled . | . . . . . . Retrieved Matter . | . . . . . . Parts Self-Destructed . | . . . . . . Prevented . | . . . . . . Kills | -11 -10 -10 -9 -9 -9 ------- Run | Scr Mat Min Mat Min Exi Combat Hostiles Destroyed 54 | . 12 4 27 4 7 Guns 44 | . 12 3 23 4 2 AOE 10 | . . 1 4 . 5 Classes Destroyed 11 | 2 5 1 2 . 1 Worker 4 | . 1 1 2 . . Builder 1 | . . . 1 . . Tunneler 5 | 2 . 1 . 2 . Hauler 6 | . 2 . 4 . . Recycler 5 | 1 2 1 1 . . Operator 4 | . 1 . 3 . . Watcher 6 | . 3 . 3 . . Swarmer 15 | . . 2 9 4 . Grunt 27 | . 12 2 13 . . Sentry 5 | . . . 5 . . Assembled 7 | . . . . . 7 Best Kill Streak 6 | 3 6 2 6 3 5 Combat Bots Only 5 | . 3 2 5 3 5 Max Kills in Single Turn 4 | 1 1 2 2 1 4 Gunslinging . | . . . . . . Exploded 4 | . . 1 2 . 4 Melee . | . . . . . . Uniques/NPCs Destroyed 1 | . . . . . 1 8R-AWN (-9/Exiles) Combat | -11 -10 -10 -9 -9 -9 -------- Run | Scr Mat Min Mat Min Exi Damage Taken 4032 | . 588 228 1034 72 2110 Core 541 | . 92 42 90 9 308 Absorbed by Shields . | . . . . . . Core Remaining (%) 73 | 100 . 46 . . . Volleys Fired 295 | 5 82 24 124 7 53 Largest 2 | 2 2 2 2 2 2 Hottest 100 | 60 70 40 100 46 46 Shots Fired 575 | 10 161 44 245 14 101 Gun 564 | 10 161 40 242 14 97 Cannon . | . . . . . . Launcher 10 | . . 4 2 . 4 Special 1 | . . . 1 . . Kinetic 493 | 5 95 40 242 14 97 Thermal 72 | 5 66 . 1 . . Explosive 10 | . . 4 2 . 4 Electromagnetic . | . . . . . . Robot Hit Streak 33 | 8 11 9 13 7 33 Robot Miss Streak 6 | . 6 3 2 1 1 Penetration Max . | . . . . . . Secondary Targets 4 | . 2 . 1 1 . Max Gunslinging Chain 1 | . 1 . 1 1 . Shots Hit Robots 397 | 8 107 25 167 10 80 Core Hits 171 | 4 44 13 71 6 33 Critical Hits 3 | . 2 1 . . . Critical Kills 1 | . . 1 . . . Critical Parts Destroyed 2 | . 2 . . . . Melee Attacks 1 | . 1 . . . . Impact . | . . . . . . Slashing 1 | . 1 . . . . Piercing . | . . . . . . Sneak Attacks . | . . . . . . Combat Hostiles . | . . . . . . Follow-up Attacks . | . . . . . . Damage Inflicted 5834 | 101 1242 433 2269 157 1632 Guns 4799 | 101 1242 187 2045 157 1067 Cannons . | . . . . . . Explosions 1020 | . . 231 224 . 565 Melee . | . . . . . . Ramming 15 | . . 15 . . . Kinetic 4121 | 43 622 187 2045 157 1067 Thermal 678 | 58 620 . . . . Explosive 1020 | . . 231 224 . 565 Electromagnetic . | . . . . . . Impact . | . . . . . . Slashing . | . . . . . . Piercing . | . . . . . . Highest Corruption . | . . . . . . Average Corruption . | . . . . . . Corruption Purged . | . . . . . . Overload Shots . | . . . . . . Overflow Damage 61 | . . . 28 . 33 Projectiles . | . . . . . . Explosions 61 | . . . 28 . 33 Melee . | . . . . . . Knockbacks . | . . . . . . Impact . | . . . . . . Kinetic . | . . . . . . Secondary . | . . . . . . Self-Inflicted Damage . | . . . . . . Shots . | . . . . . . Rammed 1 | . . 1 . . . Targets Rammed 2 | . . 2 . . . Kicked . | . . . . . . Crushed 1 | . . 1 . . . Highest Temperature 103 | . 103 15 24 . . Average Temperature 18 | . 29 9 4 . . Received Heat Transfer 768 | . 330 66 372 . . Siege Activations . | . . . . . . Robots Corrupted . | . . . . . . Combat Hostiles . | . . . . . . Parts Fried . | . . . . . . Impact Corruptions . | . . . . . . Robots Melted . | . . . . . . Combat Hostiles . | . . . . . . Parts Melted . | . . . . . . Heat Transferred 1726 | 125 1601 . . . . Parts Sabotaged . | . . . . . . Parts Stolen . | . . . . . . Parts Stripped . | . . . . . . Power Chain Reactions . | . . . . . . Missiles Intercepted . | . . . . . . Alert | -11 -10 -10 -9 -9 -9 ------- Run | Scr Mat Min Mat Min Exi Peak Influence 595 | 15 216 114 595 209 . Initial 204 | . 9 4 . 204 . Average 124 | 7 66 16 257 146 . Maximum Alert Level 2 | . 1 . 2 1 . Low Security (%) 73 | 100 95 100 41 49 . Level 1 19 | . 4 . 33 50 . Level 2 7 | . . . 25 . . Level 3 . | . . . . . . Level 4 . | . . . . . . Level 5 . | . . . . . . High Security . | . . . . . . Max Security . | . . . . . . Squads Dispatched 7 | . 4 . 2 1 . Investigation 4 | . 3 . . 1 . Extermination . | . . . . . . Reinforcement 3 | . 1 . 2 . . Assault . | . . . . . . Garrison . | . . . . . . Intercept . | . . . . . . Construction Impeded . | . . . . . . Haulers Reinforced . | . . . . . . Stealth | -11 -10 -10 -9 -9 -9 --------- Run | Scr Mat Min Mat Min Exi Distress Signals 8 | . 2 . 6 . . Communications Jammed . | . . . . . . Distress Signals . | . . . . . . Times Spotted 103 | . 33 7 51 5 7 Peak Tracking Total 8 | . 5 3 5 3 8 Tactical Retreats 12 | . 5 1 3 . 3 Traps | -11 -10 -10 -9 -9 -9 ------- Run | Scr Mat Min Mat Min Exi Traps Triggered 3 | . 3 . . . . Indirectly . | . . . . . . Trap Hack Attempts . | . . . . . . Triggered . | . . . . . . Disarmed . | . . . . . . Reprogrammed . | . . . . . . Reused 1 | . . . . . 1 Traps Extracted . | . . . . . . Installed 2 | . . . . . 2 Triggered . | . . . . . . Machines | -11 -10 -10 -9 -9 -9 ---------- Run | Scr Mat Min Mat Min Exi Machines Disabled 9 | . . . 4 . 5 Max in Single Turn 2 | . . . 2 . 1 Machines Sabotaged . | . . . . . . Garrisons Compromised . | . . . . . . Overloaded Fab Kills . | . . . . . . Fab Network Shutdowns . | . . . . . . Hacking | -11 -10 -10 -9 -9 -9 --------- Run | Scr Mat Min Mat Min Exi Machines Accessed 15 | . 8 . 4 1 2 Terminals 10 | . 7 . 3 . . Fabricators . | . . . . . . Repair Stations 2 | . 1 . 1 . . Recycling Units . | . . . . . . Scanalyzers . | . . . . . . Garrison Access . | . . . . . . Total Hacks 38 | . 22 . 10 1 5 Successful 25 | . 12 . 7 1 5 Failed 13 | . 10 . 3 . . Catastrophic 3 | . 3 . . . . Database Lockouts . | . . . . . . Manual 23 | . 14 . 8 . 1 Terminals 27 | . 19 . 8 . . Fabricators . | . . . . . . Repair Stations 5 | . 3 . 2 . . Recycling Units . | . . . . . . Scanalyzers . | . . . . . . Garrison Access . | . . . . . . Terminal Hacks 19 | . 9 . 4 1 5 Record 4 | . . . . . 4 Part Schematic 1 | . 1 . . . . Robot Schematic 1 | . 1 . . . . Robot Analysis 3 | . 2 . 1 . . Prototype ID Bank 2 | . 2 . . . . Open Door 1 | . . . . 1 . Branch Access Points 1 | . . . 1 . . Terminal Index 1 | . 1 . . . . Hauler Manifests 1 | . . . 1 . . Zone Layout 3 | . 2 . 1 . . EX-Prototype ID Bank 1 | . . . . . 1 Fabricator Hacks . | . . . . . . Repair Station Hacks 4 | . 2 . 2 . . Scan Component 2 | . 1 . 1 . . Repair 2 | . 1 . 1 . . Recycling Unit Hacks . | . . . . . . Scanalyzer . | . . . . . . Garrison Access Hacks . | . . . . . . Unauthorized Hacks 2 | . 1 . 1 . . Terminals 2 | . 1 . 1 . . Track 2 | . 1 . 1 . . Fabricators . | . . . . . . Repair Stations . | . . . . . . Recycling Units . | . . . . . . Scanalyzers . | . . . . . . Garrison Access . | . . . . . . Data Cores Recovered . | . . . . . . Used . | . . . . . . Hacking Detections 12 | . 8 . 4 . . Full Trace Events . | . . . . . . Feedback Events . | . . . . . . Feedback Blocked . | . . . . . . Robot Schematics Acquired 1 | . 1 . . . . Robots Built . | . . . . . . Matter . | . . . . . . Time . | . . . . . . Total Robot Build Rating . | . . . . . . Part Schematics Acquired 1 | . 1 . . . . Parts Built . | . . . . . . Matter . | . . . . . . Time . | . . . . . . Total Part Build Rating . | . . . . . . Parts Repaired 2 | . 1 . 1 . . Time 39 | . 26 . 13 . . Parts Recycled . | . . . . . . Recycled Matter . | . . . . . . Retrieved Matter . | . . . . . . Retrieved Components . | . . . . . . Parts Scanalyzed . | . . . . . . Part Schematics Acquired . | . . . . . . Parts Damaged . | . . . . . . Bothacking | -11 -10 -10 -9 -9 -9 ------------ Run | Scr Mat Min Mat Min Exi Used RIF Installer . | . . . . . . Robots Hacked . | . . . . . . Non-combat . | . . . . . . Combat . | . . . . . . Robot Hacks Applied . | . . . . . . Relay Couplers Released . | . . . . . . Robots Rewired . | . . . . . . Allies Hacked . | . . . . . . Hacks Repelled . | . . . . . . Allies | -11 -10 -10 -9 -9 -9 -------- Run | Scr Mat Min Mat Min Exi Total Allies . | . . . . . . Largest Group . | . . . . . . Highest-Rated Group . | . . . . . . Highest-Rated Ally . | . . . . . . Total Orders . | . . . . . . Ally Attacks . | . . . . . . Total Damage . | . . . . . . Kills . | . . . . . . Allies Corrupted . | . . . . . . Allies Melted . | . . . . . . Intel | -11 -10 -10 -9 -9 -9 ------- Run | Scr Mat Min Mat Min Exi Robot Analysis Total 3 | . 2 . 1 . . Derelict Logs Recovered 2 | . . 2 . . . Drone Launches . | . . . . . . Drone Recoveries . | . . . . . . Exploration | -11 -10 -10 -9 -9 -9 ------------- Run | Scr Mat Min Mat Min Exi Turns Passed 6657 | 116 1671 869 1391 786 1824 Spaces Moved 3240 | 58 827 494 548 414 899 Core 14 | 13 . . . . 1 Treads 3213 | 45 827 494 548 414 885 Legs . | . . . . . . Wheels 13 | . . . . . 13 Hover . | . . . . . . Flight . | . . . . . . Fastest Speed 50 | 50 160 160 160 180 140 Average Speed 170 | 149 163 160 170 180 180 Slowest Speed 1950 | 160 180 160 180 180 1950 Overloaded Moves . | . . . . . . Propulsion Burnouts . | . . . . . . Robots Hopped . | . . . . . . Cave-ins Triggered . | . . . . . . Exploration Rate (%) 66 | 6 97 90 46 74 86 Regions Visited 5 Branch Regions 3 Pre-discovered Areas 1 | . . . . . 1 Known Exits Taken 1 | . . . 1 . . Unknown Exits Taken 4 | 1 1 1 . 1 . Scrap Searched 3 | . . 2 . 1 . Spaces Dug 13 | . 1 . 12 . . Terrain Destroyed 50 | . 1 26 15 . 8 Melee 1 | . 1 . . . . Projectile 1 | . . . 1 . . AOE 48 | . . 26 14 . 8 Terrain Rammed . | . . . . . . Walls Destroyed . | . . . . . . Machines Disabled . | . . . . . . Actions | -11 -10 -10 -9 -9 -9 --------- Run | Scr Mat Min Mat Min Exi Total 3860 | 74 995 536 791 445 1019 Wait 108 | . 36 7 55 7 3 Move 3235 | 57 826 493 547 413 899 Hop . | . . . . . . Pick Up 82 | 5 22 2 25 6 22 Fast Attach 17 | 7 2 . 4 . 4 Attach 22 | . 3 2 4 5 8 Detach 1 | . . . . . 1 Swap 26 | . 8 3 11 . 4 Drop 69 | . 15 3 21 7 23 Fire 295 | 5 82 24 124 7 53 Melee 1 | . 1 . . . . Ram . | . . . . . . Kick . | . . . . . . Crush 2 | . . 2 . . . Escape Stasis . | . . . . . . Rewire . | . . . . . . Trap 2 | . . . . . 2 Miscellaneous . | . . . . . . Route ------- -11/Scrapyard -10/Materials (discovered 4 exits: *Mat x3 / [*Min]) -10/Mines -9/Materials (discovered 4 exits: *Mat x3 / *Min) -9/Mines (discovered 3 exits: *Mat / *Exi / [*Zio]) -9/Exiles History --------- Turn | Location | Event 14 | -11/Scrapyard | Discovered new exit (range 15) 117 | -11/Scrapyard | Entered Materials 174 | -10/Materials | Discovered new exit (range 16) 308 | -10/Materials | Build established: Mutant 472 | -10/Materials | Discovered new exit (range 15) 626 | -10/Materials | Discovered new exit (range 13) 1536 | -10/Materials | Discovered new exit (range 9) 1648 | -10/Materials | Repaired Lgt. Treads 1788 | -10/Materials | Entered Mines 1899 | -10/Mines | Learned location of 1 exit from Materials 1945 | -10/Mines | Learned location of 2 exits from Materials 2124 | -10/Mines | Core integrity fell below 50% 2220 | -10/Mines | Found a damaged Exp. Sensor Array with a note attached 2225 | -10/Mines | Found Prototype Device 2288 | -10/Mines | A weapon hastily lodged in a ceiling crevice suddenly fell to the ground 2622 | -10/Mines | Discovered new exit (range 5) 2657 | -10/Mines | Entered Materials 2657 | -9/Materials | Evolved 2 slots: Propulsion x1, Utility x1 2658 | -9/Materials | Identified exit to Materials 2780 | -9/Materials | Identified exit to Mines 2962 | -9/Materials | Build established: Hauler-Mutant 3468 | -9/Materials | Repaired Lgt. Treads 4048 | -9/Materials | Entered Mines 4058 | -9/Mines | Met a Derelict bent on vengeance 4093 | -9/Mines | Found a hidden stash of uninstalled traps 4123 | -9/Mines | A Derelict revealed a hidden shortcut to a safe place 4125 | -9/Mines | Discovered exit to Materials (range 11) 4681 | -9/Mines | Met a Derelict shopkeep closing up shop 4825 | -9/Mines | Deemed a non-threat by the Exiles lab entrance 4827 | -9/Mines | Discovered new exit (range 5) 4834 | -9/Mines | Entered Exiles 4972 | -9/Exiles | Met 8R-AWN 5009 | -9/Exiles | Met EX-HEX 5111 | -9/Exiles | Met EX-DEC 5147 | -9/Exiles | Learned location of Zion (-7) 5344 | -9/Exiles | Visited The Gauntlet 5638 | -9/Exiles | Met EX-BIN 5788 | -9/Exiles | Aligned with FarCom system 5790 | -9/Exiles | Given EX-Vault access code 5831 | -9/Exiles | Opened EX-Vault 5846 | -9/Exiles | Found Superbattery 5849 | -9/Exiles | Found Modified TNC 5893 | -9/Exiles | Warned to stay clear of 0b10 Research branches 6305 | -9/Exiles | Attacked by the Exiles 6344 | -9/Exiles | Core integrity fell below 50% 6398 | -9/Exiles | Build established: Mutant 6428 | -9/Exiles | Destroyed 8R-AWN 6440 | -9/Exiles | Found Prototype Device 6444 | -9/Exiles | Lost 3 parts (1n1u1w) 6651 | -9/Exiles | Core integrity fell below 20% 6658 | -9/Exiles | Destroyed by DAS Turret with DAS Cannon Last Messages --------------- 06440_ Acquired Prototype Device. 06450_ Acquired Lrg. Matter Pod. 06453_ Acquired Hcp. Matter Pod. 06514_ Acquired 96 matter. 06536_ as-49313 destroyed. 06575_ Dropped Lrg. Matter Pod. 06577_ Extracted 96 matter. 06587_ Discarded Armor Integrity Analyzer. 06588_ Dropped Lgt. Armor Plating. 06598_ Acquired Humpback. 06610_ Imp. Assault Rifle destroyed. 06615_ Knocked back. 06621_ Lgt. Treads destroyed. 06621_ Knocked back. 06625_ Machine disabled. 06625_ Knocked back. 06648_ Lgt. Treads destroyed. 06652_ Rnf. Ion Engine destroyed. 06652_ Arm. Huge Wheel destroyed. 06652_ Imp. Assault Rifle destroyed. Map ----- +----------------------------------------------------+ | ??????????????????????????# #?#"""""""#??????? | | ??????????????????????????# #?#"""""""#??????? | | ?????????????????????????## ###"" """"#??????? | | ?????????????????????????#" """"#??????? | | ?????????????????????????#" """#??????? | | ?????????????????????????#" """#??????? | | ?????????????????????????#" """#??????? | | ????????????####?????????#" """#??????? | | ???????????? """????????#" """#??????? | | ????????????" """#???????## """"??????? | | ???????????"" #????????# """#??????? | | ??????????#"" #????????#" "X" """"??????? | | ??????????#"" "#????????#" """ #??????? | | ??????????? ""?????????#" """""""""#??????? | | #???????????" "?????????##" ###########??????? | | ##??????????# #????????##"" #????????????????? | | ######???### ###?######"" #????????????????? | | """#####X# #"###""""""" ##??????? ##?????? | | """""" " "" ##???####"######? | | "" """ " ##### """ """"## | | " " """ """"# | | " | | ## """ | | ?## ! " | | ??## ! ! " | | ???##" @ ! | | ????#""" """""" !! ! ! | | ???##" ######""" */! | | ???#"" "##????#####""" !/ | | ??##""" """##?????????##""" | | ??#""" """##???????????#"""" | | ??#""" ""#???????????##"" | | ??#"" ########??####"""" | | ??#""" ## ####""" | | ??#"" """" | | ??##"" | | ???#"""" | | ???## " | | ????#" " "" """ | | ????#"""" ""## ##""" " " ""#" | | ????#"" ""#### ######""" """# | | ????#" """"##??# #????###""""#### | | ????#""" """#??## ####???######??#### | | ????## ""##??# " #??????????????## | | ?????#"" """##???#" #???????????????? | | ?????##""" ##????#" "#???????????????? | | ??????##"""" ##?????# ""!"#???????????????? | | ???????### #??????########???????????????? | | ?????????##### ##?????????????????????????????? | | ?????????????## #??????????????????????????????? | +----------------------------------------------------+ Best States ------------- Heat Dissipation 28 Energy Generation 12 Energy Capacity 265 Matter Stores 300 Matter Capacity 300 Sight Range 16 Terrain Scan Density 10 Armor Coverage 150 Evasion (%) 40 Armor Integrity Analysis 33 Recoil Reduction 3 Item Schematics ----------------- Hcp. Storage Unit | -10/Materials | Hacked Robot Schematics ------------------ O-16 Technician | -10/Materials | Hacked Fabricated ------------ Nothing Alien Tech Used ----------------- None Achievements -------------- None Challenges ------------ None Game ------ Seed FluxSiegeKinecellerator Manual? 0 Play Time 00:36:07 Cumulative 491.5 hours Start 2020.09.17 @ 12:10:41 End 2020.09.18 @ 01:57:35 Sessions 2 Manual Loads 0 Difficulty Rogue Special Mode None Game No. 321 Rogue 321 Adventurer 0 Explorer 0 Win Type - Total 6 Types 4/0/1/0/1/0/0/0/0 Lore% 84 Gallery% 87 Achievement% 69 Wizard Run 0 Options --------- ASCII 0 Keyboard 0 Movement Mouse Keybinds 1 Fullscreen 2 Font 24/Smallcaps Map View 68x50 Tactical HUD 1 Map Filters NONE Filters NONE Steam 1 RUN: 8e90b229-623d-42db-816c-b2eaa58858cd